[Event "44th Badalona Open 2018"]
[Site "Badalona"]
[Date "2018.08.01"]
[Round "1"]
[White "Salagran Ferragut, Guillem"]
[Black "Aguero Jimenez, Luis Lazaro"]
[Result "0-1"]
[ECO "C90"]
[WhiteElo "2081"]
[BlackElo "2482"]
[Annotator "ChessBase"]
[PlyCount "56"]
[EventDate "2018.08.01"]
[EventType "swiss"]
[EventCountry "ESP"]
[SourceTitle "playchess.com"]
[Source "ChessBase"]
[SourceQuality "1"]
[TimeControl "5400+30"]

1. e4 e5 {[%emt 0:00:00]} 2. Nf3 {[%emt 0:30:25]} Nc6 {[%emt 0:00:00]} 3. Bb5 {[%emt 0:00:08]} a6 {[%emt 0:00:00]} 4. Ba4 {[%emt 0:00:05]} Nf6 {[%emt 0:00:00]} 5. d3 d6 6. c3 {[%emt 0:00:22]} Be7 {[%emt 0:00:32]} 7. O-O O-O {[%emt 0:00:00]} 8. Re1 {[%emt 0:00:21]} b5 {[%emt 0:00:23]} 9. Bb3 {[%emt 0:00:00]} Na5 {[%emt 0:00:05]} 10. Bc2 c5 11. Nbd2 {[%emt 0:00:30]} Nc6 {[%emt 0:00:36]} 12. Nf1 {[%emt 0:00:09]} h6 13. h3 {[%emt 0:03:05]} Re8 {[%emt 0:05:49]} 14. Ng3 {[%emt 0:02:27]} Bf8 {[%emt 0:08:02]} 15. Nh2 {[%emt 0:01:12]} d5 {[%emt 0:00:19]} 16. exd5 {[%emt 0:42:50]} Nxd5 {[%emt 0:18:04]} 17. Qf3 {[%emt 0:03:18]} Be6 {[%emt 0:00:12]} 18. Ng4 {[%emt 0:01:34]} Qc7 {[%emt 0:38:28]} 19. Bb3 Nf4 {[%emt 0:00:06]} 20. Bxe6 {[%emt 0:02:19]} Rxe6 21. Bxf4 exf4 {[%emt 0:00:34]} 22. Rxe6 {[%emt 0:00:18]} fxe6 {[%emt 0:04:02]} 23. Nh5 {[%emt 0:00:01]} e5 {[%emt 0:01:57]} 24. Qe4 {[%emt 0:02:03]} Qd6 {[%emt 0:01:33]} 25. Re1 {[%emt 0:08:44]} Ra7 {[%emt 0:00:21]} 26. Nxe5 {[%emt 0:02:21]} Nxe5 {[%emt 0:00:41]} 27. d4 {[%emt 0:00:25]} cxd4 28. cxd4 Ng6 {[%emt 0:00:51]} 0-1

[Event "44th Badalona Open 2018"]
[Site "Badalona"]
[Date "2018.08.01"]
[Round "1"]
[White "Kruijf, Caspar"]
[Black "Banon Muntal, Benici"]
[Result "1-0"]
[ECO "C00"]
[WhiteElo "1918"]
[BlackElo "1655"]
[Annotator "NA"]
[PlyCount "48"]
[EventDate "2018.08.01"]
[EventType "swiss"]
[EventCountry "ESP"]
[SourceTitle "playchess.com"]
[Source "ChessBase"]
[SourceQuality "1"]
[TimeControl "5400+30"]

1. e4 {[%emt 0:00:00]} e6 {[%emt 0:01:18]} 2. d4 {[%emt 0:00:00]} b6 {[%emt 0:00:00]} 3. Nf3 {[%emt 0:00:15]} Bb7 {[%emt 0:00:13]} 4. Bd3 {[%emt 0:00:19]} c5 {[%emt 0:00:45]} 5. c3 {[%emt 0:01:00]} cxd4 {[%emt 0:00:27]} 6. cxd4 {[%emt 0:00:36]} Nf6 {[%emt 0:00:39]} 7. Nc3 {[%emt 0:03:40]} Bb4 {[%emt 0:07:08]} 8. Qc2 {[%emt 0:00:30]} Bxc3+ {[%emt 0:01:53]} 9. bxc3 {[%emt 0:00:17]} d5 {[%emt 0:05:24]} 10. e5 {[%emt 0:05:21]} Ne4 {[%emt 0:06:59]} 11. Ba3 {[%emt 0:09:50]} Nd7 {[%emt 0:02:40]} 12. O-O {[%emt 0:02:57]} Rc8 {[%emt 0:00:07]} 13. Bxe4 {[%emt 0:00:30]} dxe4 {[%emt 0:20:30]} 14. Nd2 {[%emt 0:05:40]} f5 {[%emt 0:21:07]} 15. Qb3 {[%emt 0:01:26]} Kf7 {[%emt 0:00:30]} 16. Nc4 {[%emt 0:00:16]} Rxc4 {[%emt 0:01:17]} 17. Qxc4 {[%emt 0:11:41]} Bd5 {[%emt 0:03:22]} 18. Qe2 {[%emt 0:04:09]} Qc8 {[%emt 0:00:36]} 19. Qh5+ {[%emt 0:01:28]} g6 {[%emt 0:03:13]} 20. Qh4 {[%emt 0:04:13]} Qd8 {[%emt 0:00:30]} 21. Qxd8 {[%emt 0:00:30]} Rxd8 {[%emt 0:01:14]} 22. Rfc1 {[%emt 0:06:11]} b5 {[%emt 0:02:34]} 23. Bd6 {[%emt 0:00:55]} a6 {[%emt 0:00:30]} 24. a4 Nb6 1-0

[Event "44th Badalona Open 2018"]
[Site "Badalona"]
[Date "2018.08.01"]
[Round "1"]
[White "Lobo Pereira, Arami"]
[Black "Brandt, Stefan"]
[Result "1-0"]
[ECO "A51"]
[WhiteElo "1658"]
[BlackElo "1940"]
[Annotator "NA RC"]
[PlyCount "76"]
[EventDate "2018.08.01"]
[EventType "swiss"]
[EventCountry "ESP"]
[SourceTitle "playchess.com"]
[Source "ChessBase"]
[SourceQuality "1"]
[TimeControl "5400+30"]

1. d4 {[%emt 0:00:00]} Nf6 {[%emt 0:00:00]} 2. c4 {[%emt 0:01:07]} e5 {[%emt 0:00:00]} 3. e3 {[%emt 0:11:42]} Nc6 {[%emt 0:07:46]} 4. Nc3 {[%emt 0:02:39]} Bb4 {[%emt 0:09:10]} 5. Nf3 {[%emt 0:05:27]} Qe7 {[%emt 0:02:04]} 6. Be2 {[%emt 0:01:38]} d6 {[%emt 0:04:18]} 7. O-O {[%emt 0:05:50]} e4 {[%emt 0:00:14]} 8. Nd2 {[%emt 0:00:19]} Bxc3 {[%emt 0:00:47]} 9. bxc3 {[%emt 0:00:41]} O-O {[%emt 0:01:38]} 10. Qc2 {[%emt 0:00:30] A28: English Opening: Four Knights Variation} Re8 {[%emt 0:00:30]} 11. Nb3 {[%emt 0:12:32]} Bf5 {[%emt 0:14:49]} 12. c5 $146 {[%emt 0:03:34]} ({Predecessor:} 12. Bd2 Qd7 13. Rab1 Rab8 14. c5 d5 15. c4 dxc4 16. Bxc4 Bh3 {1-0 (57) Hilverda,A (2404)-Wittke,R (2149) Werther 2015}) 12... d5 {[%emt 0:04:26]} 13. Bb5 {[%emt 0:01:10]} Bd7 {[%emt 0:03:33]} 14. Bxc6 {[%emt 0:03:03]} Bxc6 {[%emt 0:05:14]} 15. a4 {[%emt 0:03:09]} Bd7 {[%emt 0:02:00]} 16. Nd2 {[%emt 0:00:30]} Rad8 {[%emt 0:00:30]} 17. Ba3 {[%emt 0:02:44]} c6 {[%emt 0:03:24]} 18. Rfb1 {[%emt 0:02:38]} Bc8 {[%emt 0:00:30]} 19. Nf1 {[%emt 0:03:54]} Qe6 {[%emt 0:01:23]} 20. Ng3 {[%emt 0:01:52]} h6 {[%emt 0:02:39]} 21. Qe2 {[%emt 0:02:04]} g6 {[%emt 0:01:39]} 22. Rb4 {[%emt 0:06:15]} h5 {[%emt 0:02:24]} 23. h3 {[%emt 0:02:01]} Nh7 {[%emt 0:01:47]} 24. Re1 {[%emt 0:02:56]} Re7 {[%emt 0:03:29]} 25. c4 {[%emt 0:01:27]} Nf6 {[%emt 0:01:51]} 26. Rc1 {[%emt 0:02:45]} Kg7 {[%emt 0:04:26]} 27. Rb2 {[%emt 0:01:44]} dxc4 {[%emt 0:02:18]} 28. Qxc4 {[%emt 0:01:19]} Rd5 {[%emt 0:00:14]} 29. Ne2 {[%emt 0:03:04]} g5 {[%emt 0:00:51]} 30. Ng3 {[%emt 0:00:29]} h4 {[%emt 0:01:28]} 31. Nh1 {[%emt 0:00:48]} Nh7 {[%emt 0:01:47]} 32. Qe2 {[%emt 0:00:42]} Qg6 {[%emt 0:00:50]} 33. f3 {[%emt 0:00:54]} exf3 {[%emt 0:01:24]} 34. Qxf3 {[%emt 0:00:26]} f5 {[%emt 0:04:50]} 35. Nf2 {[%emt 0:02:23]} Nf6 {[%emt 0:02:32]} 36. Nd3 {[%emt 0:02:27]} g4 $17 {[%emt 0:04:46]} 37. hxg4 {[%emt 0:00:37]} fxg4 {[%emt 0:00:17]} 38. Qf2 {[%emt 0:00:17]} Qxd3 {[%emt 0:00:17]} 1-0